[Event "POL-chT 1 Liga 2019"]
[Site "Dzwirzyno"]
[Date "2019.09.07"]
[Round "1.23"]
[White "Renkowski, Piotr"]
[Black "Kucza, Karol"]
[Result "1/2-1/2"]
[ECO "A46"]
[WhiteElo "2179"]
[BlackElo "2280"]
[Annotator "ChessBase"]
[PlyCount "201"]
[EventDate "2019.09.07"]
[EventType "team-tourn"]
[EventCountry "POL"]
[SourceTitle "playchess.com"]
[Source "ChessBase"]
[SourceQuality "1"]
[TimeControl "40/5400+30:1800+30"]

1. d4 {[%emt 0:00:00]} Nf6 {[%emt 0:00:00]} 2. Nf3 {[%emt 0:00:27]} e6 {[%emt 0:00:26]} 3. Bf4 {[%emt 0:00:54]} c5 {[%emt 0:02:53]} 4. e3 {[%emt 0:01:05]} d5 {[%emt 0:02:19]} 5. c3 {[%emt 0:00:27]} Nc6 {[%emt 0:00:06]} 6. Nbd2 {[%emt 0:00:57]} Bd6 {[%emt 0:00:07]} 7. Bg3 {[%emt 0:00:25]} O-O {[%emt 0:00:07]} 8. Bd3 {[%emt 0:00:59]} b6 {[%emt 0:00:28]} 9. e4 {[%emt 0:00:17]} Be7 {[%emt 0:00:13]} 10. e5 {[%emt 0:00:20]} Nh5 {[%emt 0:00:17]} 11. Ng5 {[%emt 0:00:44]} Bxg5 {[%emt 0:09:13]} 12. Qxh5 {[%emt 0:00:02]} g6 {[%emt 0:00:22]} 13. Qe2 {[%emt 0:01:35]} cxd4 {[%emt 0:04:56]} 14. h4 {[%emt 0:00:07]} Bxd2+ {[%emt 0:19:06]} 15. Qxd2 {[%emt 0:00:03]} dxc3 {[%emt 0:00:38]} 16. bxc3 {[%emt 0:09:19]} f5 {[%emt 0:00:09]} 17. exf6 {[%emt 0:17:59]} Qxf6 {[%emt 0:00:26]} 18. h5 {[%emt 0:00:11]} g5 {[%emt 0:10:22]} 19. h6 {[%emt 0:03:56]} Kh8 {[%emt 0:07:27]} 20. Rh5 {[%emt 0:03:58]} Ne5 {[%emt 0:12:17]} 21. Bb5 {[%emt 0:17:30]} Nf7 {[%emt 0:11:37]} 22. Bc6 {[%emt 0:02:22]} Ba6 {[%emt 0:02:57]} 23. Bxa8 {[%emt 0:01:21]} Rxa8 {[%emt 0:00:07]} 24. O-O-O {[%emt 0:08:35]} Rc8 {[%emt 0:01:00]} 25. Kb2 {[%emt 0:01:40]} Rc4 {[%emt 0:02:40]} 26. a3 {[%emt 0:17:32]} Kg8 {[%emt 0:05:33]} 27. f3 {[%emt 0:04:00]} Bb5 {[%emt 0:00:39]} 28. Bf2 {[%emt 0:02:43]} Qg6 {[%emt 0:01:45]} 29. g4 {[%emt 0:01:50]} Rf4 {[%emt 0:01:20]} 30. Bd4 {[%emt 0:01:43]} Rxf3 {[%emt 0:01:00]} 31. Re1 {[%emt 0:00:01]} Rf4 {[%emt 0:01:38]} 32. Qg2 {[%emt 0:01:16]} Bd3 {[%emt 0:00:53]} 33. Qxd5 {[%emt 0:00:38]} Be4 {[%emt 0:02:28]} 34. Qd7 {[%emt 0:00:59]} Nxh6 {[%emt 0:00:06]} 35. Qd8+ {[%emt 0:00:21]} Rf8 {[%emt 0:00:09]} 36. Qxg5 {[%emt 0:00:07]} Nf7 {[%emt 0:00:41]} 37. Qe3 {[%emt 0:01:07]} Nd6 {[%emt 0:00:26]} 38. Ka1 {[%emt 0:00:19]} Rf3 {[%emt 0:01:00]} 39. Qg5 {[%emt 0:00:41]} Qxg5 {[%emt 0:00:57]} 40. Rxg5+ {[%emt 0:00:00]} Kf8 {[%emt 0:00:00]} 41. Rg7 {[%emt 0:03:27]} Bd5 {[%emt 0:02:23]} 42. Rxh7 {[%emt 0:04:44]} Nb5 {[%emt 0:00:17]} 43. Be5 {[%emt 0:01:01]} Rf2 {[%emt 0:07:29]} 44. Rh2 {[%emt 0:01:12]} Rxh2 {[%emt 0:00:21]} 45. Bxh2 {[%emt 0:00:02]} Nxc3 {[%emt 0:00:26]} 46. Rc1 {[%emt 0:00:43]} Ne4 {[%emt 0:01:20]} 47. Rc7 {[%emt 0:01:28]} a5 {[%emt 0:00:32]} 48. Kb2 {[%emt 0:01:46]} b5 {[%emt 0:00:27]} 49. Ra7 {[%emt 0:00:58]} b4 {[%emt 0:03:42]} 50. a4 {[%emt 0:01:26]} Nd2 {[%emt 0:00:06]} 51. Bf4 {[%emt 0:09:20]} Nc4+ {[%emt 0:00:06]} 52. Kc2 {[%emt 0:00:10]} Be4+ {[%emt 0:02:51]} 53. Kb3 {[%emt 0:00:01]} Bd5 {[%emt 0:00:04]} 54. g5 {[%emt 0:01:31]} Nb6+ {[%emt 0:02:56]} 55. Kc2 {[%emt 0:00:14]} b3+ {[%emt 0:00:29]} 56. Kb1 {[%emt 0:03:17]} Nc4 {[%emt 0:10:41]} 57. Bc1 {[%emt 0:00:25]} Be4+ {[%emt 0:00:04]} 58. Ka1 {[%emt 0:00:04]} e5 {[%emt 0:00:09]} 59. Rc7 {[%emt 0:01:27]} Bd3 {[%emt 0:00:26]} 60. Bb2 {[%emt 0:03:15]} Kg8 {[%emt 0:02:30]} 61. Bc3 {[%emt 0:00:59]} Kf8 {[%emt 0:00:39]} 62. Rc5 {[%emt 0:02:00]} Kf7 {[%emt 0:02:09]} 63. Bxe5 {[%emt 0:00:59]} Kg6 {[%emt 0:00:06]} 64. Bf6 {[%emt 0:00:50]} Kh5 {[%emt 0:00:20]} 65. Bb2 {[%emt 0:01:03]} Be2 {[%emt 0:00:39]} 66. Bc1 {[%emt 0:00:11]} Bd3 {[%emt 0:00:15]} 67. Rc6 {[%emt 0:00:26]} b2+ {[%emt 0:00:59]} 68. Bxb2 {[%emt 0:00:05]} Kxg5 {[%emt 0:00:03]} 69. Bc3 {[%emt 0:00:45]} Kf5 {[%emt 0:00:05]} 70. Bxa5 {[%emt 0:00:16]} Nxa5 {[%emt 0:00:12]} 71. Rc5+ {[%emt 0:00:06]} Ke6 {[%emt 0:00:05]} 72. Rxa5 {[%emt 0:00:11]} Kd6 {[%emt 0:00:04]} 73. Kb2 {[%emt 0:00:35]} Kc6 {[%emt 0:00:09]} 74. Kc3 {[%emt 0:00:05]} Kb6 {[%emt 0:00:15]} 75. Rg5 {[%emt 0:00:30]} Bf1 {[%emt 0:00:07]} 76. Kb4 {[%emt 0:00:05]} Be2 {[%emt 0:00:09]} 77. Rg6+ {[%emt 0:00:13]} Ka7 {[%emt 0:00:11]} 78. Ka5 {[%emt 0:01:30]} Kb7 {[%emt 0:00:04]} 79. Rh6 {[%emt 0:01:05]} Bf1 {[%emt 0:00:12]} 80. Kb4 {[%emt 0:00:21]} Ka7 {[%emt 0:00:13]} 81. Kc5 {[%emt 0:00:14]} Kb7 {[%emt 0:00:11]} 82. Rh7+ {[%emt 0:00:14]} Ka6 {[%emt 0:00:06]} 83. Rf7 {[%emt 0:00:30]} Bd3 {[%emt 0:00:25]} 84. Kb4 {[%emt 0:01:48]} Be2 {[%emt 0:00:17]} 85. a5 {[%emt 0:00:08]} Bd3 {[%emt 0:00:06]} 86. Rf6+ {[%emt 0:00:32]} Ka7 {[%emt 0:00:08]} 87. Kc5 {[%emt 0:00:08]} Kb7 {[%emt 0:00:35]} 88. Rb6+ {[%emt 0:00:12]} Ka7 {[%emt 0:00:05]} 89. Kc6 {[%emt 0:00:07]} Bf1 {[%emt 0:00:20]} 90. Kc7 {[%emt 0:00:09]} Ba6 {[%emt 0:00:52]} 91. Rf6 {[%emt 0:00:22]} Bd3 {[%emt 0:00:09]} 92. a6 {[%emt 0:00:08]} Be2 {[%emt 0:00:15]} 93. Rf2 {[%emt 0:00:34]} Bd3 {[%emt 0:00:16]} 94. Kc6 {[%emt 0:00:17]} Bc4 {[%emt 0:01:38]} 95. Rb2 {[%emt 0:02:22]} Bf1 {[%emt 0:00:49]} 96. Rd2 {[%emt 0:01:10]} Bc4 {[%emt 0:00:21]} 97. Rc2 {[%emt 0:00:47]} Bd3 {[%emt 0:00:13]} 98. Rc1 {[%emt 0:00:28]} Be2 {[%emt 0:00:08]} 99. Rb1 {[%emt 0:00:05]} Bf3+ {[%emt 0:01:43]} 100. Kc5 {[%emt 0:00:21]} Kxa6 {[%emt 0:00:46]} 101. Ra1+ {[%emt 0:00:13]} 1/2-1/2

[Event "POL-chT 1 Liga 2019"]
[Site "Dzwirzyno"]
[Date "2019.09.07"]
[Round "1.24"]
[White "Kantane, Anna"]
[Black "Jablonska, Sabina"]
[Result "1-0"]
[ECO "B48"]
[WhiteElo "2273"]
[BlackElo "1928"]
[Annotator "ChessBase"]
[PlyCount "59"]
[EventDate "2019.09.07"]
[EventType "team-tourn"]
[EventCountry "POL"]
[SourceTitle "playchess.com"]
[Source "ChessBase"]
[SourceQuality "1"]
[TimeControl "40/5400+30:1800+30"]

1. e4 {[%emt 0:00:00]} c5 {[%emt 0:00:00]} 2. Nf3 {[%emt 0:00:00]} e6 {[%emt 0:00:00]} 3. d4 {[%emt 0:00:00]} cxd4 {[%emt 0:00:01]} 4. Nxd4 {[%emt 0:00:06]} Nc6 {[%emt 0:00:12]} 5. Nc3 {[%emt 0:00:28]} Qc7 {[%emt 0:00:48]} 6. Be3 {[%emt 0:00:29]} a6 {[%emt 0:00:23]} 7. Qf3 {[%emt 0:01:08]} Nf6 {[%emt 0:03:35]} 8. O-O-O {[%emt 0:01:21]} Be7 {[%emt 0:04:37]} 9. Be2 {[%emt 0:07:34]} Nxd4 {[%emt 0:10:34]} 10. Bxd4 {[%emt 0:01:49]} d6 {[%emt 0:06:13]} 11. Qg3 {[%emt 0:20:31]} e5 {[%emt 0:11:38]} 12. Qxg7 {[%emt 0:11:38]} Rf8 {[%emt 0:00:27]} 13. Be3 {[%emt 0:04:43]} Be6 {[%emt 0:01:17]} 14. Nd5 {[%emt 0:07:50]} Bxd5 {[%emt 0:05:27]} 15. exd5 {[%emt 0:02:12]} Rc8 {[%emt 0:15:27]} 16. c4 {[%emt 0:04:38]} Rg8 {[%emt 0:09:20]} 17. Qh6 {[%emt 0:00:25]} Rxg2 {[%emt 0:02:11]} 18. Qh3 {[%emt 0:07:21]} Rg6 {[%emt 0:04:53]} 19. Kb1 {[%emt 0:00:36]} Qd7 {[%emt 0:04:56]} 20. Qxd7+ {[%emt 0:08:23]} Kxd7 {[%emt 0:00:32]} 21. f3 {[%emt 0:00:13]} Rcg8 {[%emt 0:07:49]} 22. Bf1 {[%emt 0:05:09]} h5 {[%emt 0:02:41]} 23. Bh3+ {[%emt 0:02:16]} Kc7 {[%emt 0:00:38]} 24. Rhe1 {[%emt 0:01:46]} Nd7 {[%emt 0:03:04]} 25. b4 {[%emt 0:06:15]} Nb6 {[%emt 0:02:28]} 26. Rc1 {[%emt 0:01:12]} Rd8 {[%emt 0:01:39]} 27. c5 {[%emt 0:01:38]} dxc5 {[%emt 0:00:43]} 28. d6+ {[%emt 0:00:16]} Bxd6 {[%emt 0:01:51]} 29. bxc5 {[%emt 0:00:07]} Be7 {[%emt 0:00:31]} 30. cxb6+ {[%emt 0:00:08]} 1-0

[Event "POL-chT 1 Liga 2019"]
[Site "Dzwirzyno"]
[Date "2019.09.07"]
[Round "1.25"]
[White "Chylewski, Patryk"]
[Black "Sopur, Lech"]
[Result "1-0"]
[ECO "A40"]
[WhiteElo "2342"]
[BlackElo "2417"]
[Annotator "ChessBase"]
[PlyCount "49"]
[EventDate "2019.09.07"]
[EventType "team-tourn"]
[EventCountry "POL"]
[SourceTitle "playchess.com"]
[Source "ChessBase"]
[SourceQuality "1"]
[TimeControl "40/5400+30:1800+30"]

1. d4 {[%emt 0:00:00]} Nf6 {[%emt 0:00:00]} 2. c4 {[%emt 0:00:00]} e6 {[%emt 0:00:12]} 3. g3 {[%emt 0:00:00]} d5 {[%emt 0:01:34]} 4. Nf3 {[%emt 0:00:00]} Bb4+ {[%emt 0:00:51]} 5. Nbd2 {[%emt 0:00:43]} dxc4 {[%emt 0:03:34]} 6. Bg2 {[%emt 0:00:05]} Nd5 {[%emt 0:00:52]} 7. O-O {[%emt 0:05:28]} c3 {[%emt 0:01:57]} 8. Nb3 {[%emt 0:03:05]} Nc6 {[%emt 0:25:44]} 9. e4 {[%emt 0:05:43]} Nb6 {[%emt 0:09:01]} 10. bxc3 {[%emt 0:03:16]} Bxc3 {[%emt 0:00:08]} 11. Rb1 {[%emt 0:02:30]} Bb4 {[%emt 0:08:59]} 12. Qc2 {[%emt 0:04:02]} O-O {[%emt 0:01:59]} 13. Rd1 {[%emt 0:00:51]} Qe7 {[%emt 0:08:21]} 14. Bb2 {[%emt 0:37:14]} f6 {[%emt 0:05:49]} 15. Rbc1 {[%emt 0:13:44]} Na4 {[%emt 0:03:28]} 16. Ba1 {[%emt 0:03:09]} Ba3 {[%emt 0:00:53]} 17. d5 {[%emt 0:05:53]} Bxc1 {[%emt 0:11:38]} 18. Nxc1 {[%emt 0:01:36]} Qc5 {[%emt 0:03:14]} 19. Qxa4 {[%emt 0:01:42]} b5 {[%emt 0:00:28]} 20. Bd4 {[%emt 0:03:02]} Nxd4 {[%emt 0:00:28]} 21. Qxd4 {[%emt 0:00:09]} Qc2 {[%emt 0:01:09]} 22. Ne1 {[%emt 0:04:18]} Qb1 {[%emt 0:01:32]} 23. Qd2 {[%emt 0:00:56]} Qa1 {[%emt 0:00:35]} 24. f4 {[%emt 0:00:37]} b4 {[%emt 0:00:58]} 25. Ne2 {[%emt 0:00:25]} 1-0

[Event "POL-chT 1 Liga 2019"]
[Site "Dzwirzyno"]
[Date "2019.09.07"]
[Round "1.26"]
[White "Flis, Pawel"]
[Black "Kowalski, Igor"]
[Result "1/2-1/2"]
[ECO "C55"]
[WhiteElo "1897"]
[BlackElo "2364"]
[Annotator "ChessBase"]
[PlyCount "75"]
[EventDate "2019.09.07"]
[EventType "team-tourn"]
[EventCountry "POL"]
[SourceTitle "playchess.com"]
[Source "ChessBase"]
[SourceQuality "1"]
[TimeControl "40/5400+30:1800+30"]

1. e4 {[%emt 0:00:00]} e5 {[%emt 0:00:00]} 2. d4 {[%emt 0:00:00]} exd4 {[%emt 0:00:00]} 3. Nf3 {[%emt 0:00:00]} Nc6 {[%emt 0:00:00]} 4. Bc4 {[%emt 0:00:00]} Nf6 {[%emt 0:00:21]} 5. e5 {[%emt 0:00:03]} d5 {[%emt 0:00:18]} 6. Bb5 {[%emt 0:00:08]} Ne4 {[%emt 0:00:16]} 7. Nxd4 {[%emt 0:00:51]} Bd7 {[%emt 0:00:05]} 8. Bxc6 {[%emt 0:00:08]} bxc6 {[%emt 0:00:03]} 9. O-O {[%emt 0:00:43]} Bc5 {[%emt 0:00:07]} 10. f3 {[%emt 0:01:48]} Ng5 {[%emt 0:00:05]} 11. Be3 {[%emt 0:02:32]} Bb6 {[%emt 0:01:20]} 12. f4 {[%emt 0:03:32]} Ne4 {[%emt 0:00:33]} 13. Nd2 {[%emt 0:01:10]} c5 {[%emt 0:25:13]} 14. Ne2 {[%emt 0:00:30]} Nxd2 {[%emt 0:00:30]} 15. Qxd2 {[%emt 0:00:30]} d4 {[%emt 0:00:30]} 16. Bf2 Bc6 17. c4 {[%emt 0:15:10]} Qd7 {[%emt 0:02:00]} 18. Qd3 {[%emt 0:19:11]} f5 {[%emt 0:06:58]} 19. exf6 {[%emt 0:16:48]} gxf6 {[%emt 0:00:16]} 20. f5 {[%emt 0:00:26]} Rg8 {[%emt 0:01:52]} 21. Nf4 {[%emt 0:04:29]} O-O-O {[%emt 0:00:10]} 22. Rae1 {[%emt 0:00:42]} Qf7 {[%emt 0:05:43]} 23. Re6 {[%emt 0:05:18]} Bd7 {[%emt 0:04:24]} 24. Qe4 {[%emt 0:10:57]} Kb8 {[%emt 0:00:28]} 25. Nd5 {[%emt 0:03:08]} Rge8 {[%emt 0:01:56]} 26. Re1 {[%emt 0:07:33]} Qg7 {[%emt 0:38:41]} 27. Bg3 {[%emt 0:03:25]} Bxe6 {[%emt 0:03:23]} 28. fxe6 {[%emt 0:00:20]} Rxd5 {[%emt 0:01:14]} 29. Qxd5 {[%emt 0:02:34]} Qe7 {[%emt 0:00:05]} 30. Qc6 {[%emt 0:01:35]} Rd8 {[%emt 0:02:17]} 31. a4 {[%emt 0:00:44]} Qe8 {[%emt 0:00:33]} 32. e7 {[%emt 0:00:29]} Rc8 {[%emt 0:00:07]} 33. Qxf6 {[%emt 0:00:53]} Ba5 {[%emt 0:02:29]} 34. Re6 {[%emt 0:00:34]} Qxa4 {[%emt 0:00:59]} 35. Qf8 {[%emt 0:00:25]} Re8 {[%emt 0:00:36]} 36. b3 {[%emt 0:00:09]} Qd7 {[%emt 0:00:08]} 37. Qf5 {[%emt 0:00:44]} Kc8 {[%emt 0:01:38]} 38. Qe4 1/2-1/2

[Event "POL-chT 1 Liga 2019"]
[Site "Dzwirzyno"]
[Date "2019.09.07"]
[Round "1.27"]
[White "Nowak, Lukasz"]
[Black "Szmacinski, Slawomir"]
[Result "1-0"]
[ECO "E12"]
[WhiteElo "2270"]
[BlackElo "1848"]
[Annotator "ChessBase"]
[PlyCount "63"]
[EventDate "2019.09.07"]
[EventType "team-tourn"]
[EventCountry "POL"]
[SourceTitle "playchess.com"]
[Source "ChessBase"]
[SourceQuality "1"]
[TimeControl "40/5400+30:1800+30"]

1. d4 {[%emt 0:00:00]} Nf6 {[%emt 0:11:17]} 2. c4 {[%emt 0:00:00]} e6 {[%emt 0:00:10]} 3. Nf3 {[%emt 0:00:10]} b6 {[%emt 0:00:23]} 4. a3 {[%emt 0:00:11]} Ba6 {[%emt 0:02:21]} 5. Qc2 {[%emt 0:00:15]} d5 {[%emt 0:01:28]} 6. Nbd2 {[%emt 0:06:33]} Be7 {[%emt 0:02:07]} 7. e4 {[%emt 0:05:17]} dxe4 {[%emt 0:05:35]} 8. Nxe4 {[%emt 0:00:19]} Bb7 {[%emt 0:02:19]} 9. Bd3 {[%emt 0:00:33]} Nbd7 {[%emt 0:02:29]} 10. O-O {[%emt 0:01:49]} O-O {[%emt 0:00:30]} 11. Rd1 {[%emt 0:05:08]} Nxe4 {[%emt 0:03:21]} 12. Bxe4 {[%emt 0:00:14]} Bxe4 {[%emt 0:00:25]} 13. Qxe4 {[%emt 0:00:07]} Nf6 {[%emt 0:00:07]} 14. Qe2 {[%emt 0:01:54]} c6 {[%emt 0:02:13]} 15. Bf4 {[%emt 0:02:49]} Rc8 {[%emt 0:02:10]} 16. Rd3 {[%emt 0:02:37]} Re8 {[%emt 0:02:02]} 17. Rad1 {[%emt 0:02:12]} b5 {[%emt 0:07:43]} 18. Rc3 {[%emt 0:09:59]} a5 {[%emt 0:09:06]} 19. Ne5 {[%emt 0:05:29]} b4 {[%emt 0:11:59]} 20. Rg3 {[%emt 0:02:06]} g6 {[%emt 0:04:01]} 21. Qf3 {[%emt 0:02:30]} bxa3 {[%emt 0:04:33]} 22. bxa3 {[%emt 0:00:10]} Rc7 {[%emt 0:14:41]} 23. Nxc6 {[%emt 0:07:00]} Rxc6 {[%emt 0:00:12]} 24. Qxc6 {[%emt 0:00:06]} Nh5 {[%emt 0:00:05]} 25. Bc7 {[%emt 0:01:05]} Qc8 {[%emt 0:01:25]} 26. Rb3 {[%emt 0:00:25]} Qa8 {[%emt 0:06:58]} 27. Qxa8 {[%emt 0:00:17]} Rxa8 {[%emt 0:00:05]} 28. d5 {[%emt 0:00:28]} exd5 {[%emt 0:02:24]} 29. cxd5 {[%emt 0:00:07]} a4 {[%emt 0:00:44]} 30. Rb8+ {[%emt 0:00:50]} Rxb8 {[%emt 0:00:11]} 31. Bxb8 {[%emt 0:00:05]} Nf6 {[%emt 0:00:13]} 32. d6 {[%emt 0:00:13]} 1-0

[Event "POL-chT 1 Liga 2019"]
[Site "Dzwirzyno"]
[Date "2019.09.07"]
[Round "1.28"]
[White "Redlich, Bogdan"]
[Black "Winiarski, Mikolaj"]
[Result "1/2-1/2"]
[ECO "E16"]
[WhiteElo "1600"]
[BlackElo "2213"]
[Annotator "ChessBase"]
[PlyCount "86"]
[EventDate "2019.09.07"]
[EventType "team-tourn"]
[EventCountry "POL"]
[SourceTitle "playchess.com"]
[Source "ChessBase"]
[SourceQuality "1"]
[TimeControl "40/5400+30:1800+30"]

1. d4 {[%emt 0:00:00]} Nf6 {[%emt 0:00:00]} 2. Nf3 {[%emt 0:00:00]} e6 {[%emt 0:00:12]} 3. c4 {[%emt 0:00:43]} b6 {[%emt 0:00:07]} 4. g3 {[%emt 0:00:15]} Bb7 {[%emt 0:04:09]} 5. Bg2 {[%emt 0:01:40]} Bb4+ {[%emt 0:03:43]} 6. Bd2 {[%emt 0:05:33]} Bxd2+ {[%emt 0:04:36]} 7. Qxd2 {[%emt 0:06:07]} O-O {[%emt 0:02:31]} 8. Nc3 {[%emt 0:02:38]} Ne4 {[%emt 0:13:38]} 9. Nxe4 {[%emt 0:06:09]} Bxe4 {[%emt 0:00:04]} 10. O-O {[%emt 0:00:10]} d6 {[%emt 0:17:37]} 11. Nh4 {[%emt 0:07:39]} Bxg2 {[%emt 0:02:44]} 12. Nxg2 {[%emt 0:01:33]} Nd7 {[%emt 0:00:34]} 13. Rfd1 {[%emt 0:09:10]} Qe7 {[%emt 0:05:33]} 14. Nf4 {[%emt 0:08:36]} Rae8 {[%emt 0:01:36]} 15. b4 {[%emt 0:05:31]} e5 {[%emt 0:11:50]} 16. dxe5 {[%emt 0:08:43]} Nxe5 {[%emt 0:03:29]} 17. Qc3 {[%emt 0:02:12]} Ng6 {[%emt 0:15:50]} 18. Nd5 {[%emt 0:07:20]} Qd7 {[%emt 0:05:03]} 19. Rd2 {[%emt 0:07:57]} Re4 {[%emt 0:03:00]} 20. f3 {[%emt 0:02:47]} Re5 {[%emt 0:00:25]} 21. b5 {[%emt 0:04:48]} f5 {[%emt 0:01:50]} 22. a4 {[%emt 0:02:36]} f4 {[%emt 0:01:26]} 23. Nxf4 {[%emt 0:00:50]} Nxf4 {[%emt 0:00:53]} 24. Qxe5 {[%emt 0:01:17]} Qh3 {[%emt 0:00:04]} 25. Qxf4 {[%emt 0:00:14]} Rxf4 {[%emt 0:00:03]} 26. gxf4 {[%emt 0:00:08]} Qe6 {[%emt 0:00:04]} 27. e4 {[%emt 0:03:31]} Qxc4 {[%emt 0:00:09]} 28. Raa2 {[%emt 0:00:15]} h5 {[%emt 0:01:59]} 29. Rac2 {[%emt 0:01:00]} Qxa4 {[%emt 0:00:31]} 30. Rxc7 {[%emt 0:00:31]} Qxb5 {[%emt 0:00:41]} 31. Rxd6 {[%emt 0:01:44]} a5 {[%emt 0:00:34]} 32. Rdd7 {[%emt 0:01:04]} Qb1+ {[%emt 0:00:17]} 33. Kg2 {[%emt 0:00:21]} Qb2+ {[%emt 0:00:06]} 34. Kg3 {[%emt 0:00:21]} h4+ {[%emt 0:00:50]} 35. Kxh4 {[%emt 0:00:48]} Qf6+ {[%emt 0:00:20]} 36. Kg4 {[%emt 0:00:53]} a4 {[%emt 0:00:18]} 37. f5 {[%emt 0:02:06]} a3 {[%emt 0:01:09]} 38. Ra7 {[%emt 0:01:04]} Qb2 {[%emt 0:00:28]} 39. Ra8+ {[%emt 0:00:11]} Kh7 {[%emt 0:00:10]} 40. Rdd8 {[%emt 0:00:00]} Qg2+ {[%emt 0:00:00]} 41. Kf4 {[%emt 0:00:58]} Qxh2+ {[%emt 0:01:01]} 42. Ke3 {[%emt 0:01:39]} Qg1+ {[%emt 0:00:22]} 43. Kf4 {[%emt 0:00:58]} Qh2+ {[%emt 0:06:06]} 1/2-1/2

[Event "POL-chT 1 Liga 2019"]
[Site "Dzwirzyno"]
[Date "2019.09.07"]
[Round "1.29"]
[White "Kokoszczynski, Jan"]
[Black "Kelm, Robert"]
[Result "1-0"]
[ECO "D27"]
[WhiteElo "2289"]
[BlackElo "1585"]
[Annotator "ChessBase"]
[PlyCount "63"]
[EventDate "2019.09.07"]
[EventType "team-tourn"]
[EventCountry "POL"]
[SourceTitle "playchess.com"]
[Source "ChessBase"]
[SourceQuality "1"]
[TimeControl "40/5400+30:1800+30"]

1. d4 {[%emt 0:00:00]} d5 {[%emt 0:00:50]} 2. c4 {[%emt 0:00:38]} dxc4 {[%emt 0:02:07]} 3. Nf3 {[%emt 0:00:11]} Nf6 {[%emt 0:00:06]} 4. e3 {[%emt 0:00:36]} e6 {[%emt 0:01:03]} 5. Bxc4 {[%emt 0:00:32]} c5 {[%emt 0:03:31]} 6. O-O {[%emt 0:00:40]} a6 {[%emt 0:01:36]} 7. a4 {[%emt 0:02:13]} Nbd7 {[%emt 0:02:47]} 8. Nc3 {[%emt 0:01:58]} Be7 {[%emt 0:07:58]} 9. Qe2 {[%emt 0:10:36]} cxd4 {[%emt 0:09:39]} 10. exd4 {[%emt 0:01:55]} Nb6 {[%emt 0:03:20]} 11. Bb3 {[%emt 0:02:26]} O-O {[%emt 0:05:06]} 12. Re1 {[%emt 0:07:28]} h6 {[%emt 0:04:14]} 13. Bf4 {[%emt 0:08:44]} Nbd5 {[%emt 0:02:17]} 14. Be5 {[%emt 0:00:10]} Bb4 {[%emt 0:00:02]} 15. Qd3 {[%emt 0:08:23]} Ba5 {[%emt 0:16:05]} 16. Nd2 {[%emt 0:10:09]} Nxc3 {[%emt 0:27:22]} 17. bxc3 {[%emt 0:01:30]} Bc7 {[%emt 0:00:33]} 18. f4 {[%emt 0:09:18]} Bd7 {[%emt 0:00:59]} 19. Bc2 {[%emt 0:01:28]} g6 {[%emt 0:00:11]} 20. Re3 {[%emt 0:03:30]} Kh7 {[%emt 0:01:25]} 21. Rg3 {[%emt 0:02:42]} Rg8 {[%emt 0:00:07]} 22. Rf1 {[%emt 0:01:39]} Rc8 {[%emt 0:01:43]} 23. Nf3 {[%emt 0:09:56]} Rg7 {[%emt 0:03:05]} 24. Rh3 {[%emt 0:01:17]} h5 {[%emt 0:00:26]} 25. Bxf6 {[%emt 0:05:50]} Qxf6 {[%emt 0:00:06]} 26. Ne5 {[%emt 0:00:05]} Be8 {[%emt 0:00:21]} 27. Rxh5+ {[%emt 0:00:36]} Kg8 {[%emt 0:00:09]} 28. Rh6 {[%emt 0:01:28]} b5 {[%emt 0:00:41]} 29. Qh3 {[%emt 0:00:33]} Kf8 {[%emt 0:00:24]} 30. Ng4 {[%emt 0:01:06]} Qd8 {[%emt 0:01:43]} 31. Rh8+ {[%emt 0:00:05]} Ke7 {[%emt 0:00:17]} 32. Qh6 {[%emt 0:00:09]} 1-0

[Event "POL-chT 1 Liga 2019"]
[Site "Dzwirzyno"]
[Date "2019.09.07"]
[Round "1.30"]
[White "Miturova, Magdalena"]
[Black "Moscicka, Pola"]
[Result "0-1"]
[ECO "B34"]
[WhiteElo "2219"]
[BlackElo "1994"]
[Annotator "ChessBase"]
[PlyCount "78"]
[EventDate "2019.09.07"]
[EventType "team-tourn"]
[EventCountry "POL"]
[SourceTitle "playchess.com"]
[Source "ChessBase"]
[SourceQuality "1"]
[TimeControl "40/5400+30:1800+30"]

1. e4 {[%emt 0:00:00]} c5 {[%emt 0:00:00]} 2. Nf3 {[%emt 0:00:00]} Nc6 {[%emt 0:00:00]} 3. d4 {[%emt 0:00:04]} cxd4 {[%emt 0:00:00]} 4. Nxd4 {[%emt 0:00:05]} Nf6 {[%emt 0:00:14]} 5. Nc3 {[%emt 0:00:07]} e5 {[%emt 0:00:14]} 6. Ndb5 {[%emt 0:00:48]} d6 {[%emt 0:00:08]} 7. Bg5 {[%emt 0:01:07]} a6 {[%emt 0:00:16]} 8. Bxf6 {[%emt 0:00:36]} gxf6 {[%emt 0:00:30]} 9. Na3 {[%emt 0:00:08]} b5 {[%emt 0:00:15]} 10. Nd5 {[%emt 0:00:09]} Bg7 {[%emt 0:00:38]} 11. Bd3 {[%emt 0:03:59]} Ne7 {[%emt 0:03:21]} 12. Nxe7 {[%emt 0:02:55]} Qxe7 {[%emt 0:00:22]} 13. c3 {[%emt 0:02:57]} O-O {[%emt 0:04:05]} 14. Nc2 {[%emt 0:04:04]} f5 {[%emt 0:07:57]} 15. exf5 {[%emt 0:11:07]} e4 {[%emt 0:02:04]} 16. Be2 {[%emt 0:01:17]} Bxf5 {[%emt 0:01:59]} 17. Qd5 {[%emt 0:16:02]} Bg6 {[%emt 0:17:56]} 18. h4 {[%emt 0:12:24]} Rac8 {[%emt 0:04:19]} 19. Rd1 {[%emt 0:06:39]} Rfd8 {[%emt 0:05:45]} 20. h5 {[%emt 0:09:01]} Rc5 {[%emt 0:02:13]} 21. hxg6 {[%emt 0:06:00]} Rxd5 {[%emt 0:01:14]} 22. gxh7+ {[%emt 0:00:08]} Kh8 {[%emt 0:00:40]} 23. Rxd5 {[%emt 0:00:08]} Rc8 {[%emt 0:07:27]} 24. a4 {[%emt 0:14:33]} bxa4 {[%emt 0:05:00]} 25. Bxa6 {[%emt 0:04:32]} Rc5 {[%emt 0:02:28]} 26. Rxc5 {[%emt 0:00:40]} dxc5 {[%emt 0:00:08]} 27. Bc4 {[%emt 0:00:45]} Qg5 {[%emt 0:04:05]} 28. Ne3 {[%emt 0:01:11]} a3 {[%emt 0:02:05]} 29. bxa3 {[%emt 0:00:36]} Bxc3+ {[%emt 0:00:47]} 30. Kf1 {[%emt 0:00:40]} Qf4 {[%emt 0:04:25]} 31. Rh5 {[%emt 0:01:53]} Bd4 {[%emt 0:03:47]} 32. Rf5 {[%emt 0:00:32]} Qb8 {[%emt 0:01:33]} 33. Kg1 {[%emt 0:00:38]} Bxe3 {[%emt 0:02:53]} 34. fxe3 {[%emt 0:00:03]} Qg3 {[%emt 0:00:40]} 35. Rxf7 {[%emt 0:00:57]} Qxe3+ {[%emt 0:02:37]} 36. Kh2 {[%emt 0:00:05]} Qh6+ {[%emt 0:01:18]} 37. Kg3 {[%emt 0:00:20]} Qd6+ {[%emt 0:03:08]} 38. Kg4 {[%emt 0:00:57]} e3 {[%emt 0:00:35]} 39. Kf3 {[%emt 0:00:27]} Qd1+ {[%emt 0:03:33]} 0-1